Cogmind - Beta 13 @@@ ROGUE MODE // 2024.07.15 @ 20:32:17 Player: TheGreatPlup Result: Destroyed by D-53 Grenadier with Mini Grenade Launcher Performance ------------- Evolutions (0) 0 Regions Visited (2) 400 Robots Destroyed (28) 140 Value Destroyed (616) 616 Prototype IDs (0) 0 Alien Tech Used (0) 0 Bonus (12) 12 TOTAL SCORE: 1168 Bonus ------- High Alert Combat Kills 12 Cogmind --------- Core Integrity 0/250 Matter 135/300 Energy 100/100 System Corruption 0% Temperature Cool (0) Movement Core (100) Ox1 Location -10/Mines Parts ------- > --- POWER (1) -------- (None) > --- PROPULSION (2) --- (None) > --- UTILITY (2) ------ Small Storage Unit Targeting Computer > --- WEAPON (2) ------- (None) > --- INVENTORY (8) ---- Light Ion Engine Light Ion Engine Light Treads Light Treads Improved Treads Improved Treads Experimental Sensor Array Peak State ------------ > --- POWER ------------ Ion Engine > --- PROPULSION ------- Improved Treads Improved Treads > --- UTILITY ---------- Small Storage Unit Signal Interpreter > --- WEAPON ----------- EM Pulse Gun Mini Grenade Launcher > --- INVENTORY -------- Light Treads Light Treads Improved Treads Improved Treads Aluminum Leg Aluminum Leg Medium Matter Pod Small Laser [Rating: 11] Favorites ----------- Power Ion Engine Engine Ion Engine Propulsion Improved Treads Treads Improved Treads Utility Small Storage Unit Storage Small Storage Unit Processor Targeting Computer Protection Light Armor Plating Weapon Mini Grenade Launcher Energy Gun EM Pulse Gun Launcher Mini Grenade Launcher Build | -11 -10 -10 ------- Run | Yrd Mat Min Slots Evolved . | . . . Power . | . . . Propulsion . | . . . Utility . | . . . Weapon . | . . . Parts Attached 16 | 2 12 2 Power 3 | . 3 . Engine 3 | . 3 . Core . | . . . Reactor . | . . . Propulsion 3 | . 3 . Treads 3 | . 3 . Leg . | . . . Wheel . | . . . Hover . | . . . Flight . | . . . Utility 4 | 1 3 . Device . | . . . Storage 1 | 1 . . Processor 2 | . 2 . Hackware . | . . . Protection 1 | . 1 . Artifact . | . . . Weapon 6 | 1 3 2 Energy Gun 2 | 1 1 . Energy Cannon . | . . . Ballistic Gun . | . . . Ballistic Cannon . | . . . Launcher 4 | . 2 2 Special Weapon . | . . . Impact Weapon . | . . . Slashing Weapon . | . . . Piercing Weapon . | . . . Special Melee Weapon . | . . . Unidentified Prototypes . | . . . Parts Lost 7 | . 1 6 Power 1 | . . 1 Propulsion 2 | . . 2 Utility 1 | . 1 . Weapon 3 | . . 3 Highest Loss Streak 5 | . 1 5 To Critical Strikes . | . . . Average Slot Usage (%) 90 | . 92 80 Engine 13 | . 13 12 Treads 27 | . 27 25 Storage 14 | . 14 14 Processor 8 | . 7 14 Energy Gun 11 | . 14 . Launcher 13 | . 13 13 Naked Turns . | . . . Heaviest Build 16 | 6 16 11 Greatest Support 46 | 3 46 46 Greatest Overweight (x) 2 | 1 1 2 Average Overweight (x) . | . . . Largest Inventory Capacity 8 | 8 8 8 Average Capacity 7 | 7 8 8 Most Carried 8 | 8 8 8 Average Carried 7 | 5 7 7 Final Capacity 8 | 8 8 8 Final Carried 8 | 8 8 7 Class Distribution -------------------- 100% | Mutant Dominant Class ---------------- Mutant | -10/Materials Mutant | -10/Mines Resources | -11 -10 -10 ----------- Run | Yrd Mat Min Matter Collected 510 | 196 251 63 Remotely . | . . . Salvage Created 690 | . 503 187 Parts 44 | . 39 5 Haulers Intercepted . | . . . Recyclers Shooed 1 | . 1 . Parts Field Recycled . | . . . Retrieved Matter . | . . . Parts Self-Destructed . | . . . Prevented . | . . . Kills | -11 -10 -10 ------- Run | Yrd Mat Min Combat Hostiles Destroyed 29 | . 13 16 AOE 29 | . 13 16 Classes Destroyed 8 | . 7 1 Builder 4 | . 4 . Tunneler 1 | . 1 . Recycler 3 | . 3 . Operator 1 | . 1 . Watcher 2 | . 2 . Swarmer 6 | . 6 . Grunt 11 | . 7 4 Assembled 12 | . . 12 Best Kill Streak 12 | . 7 12 Combat Bots Only 12 | . 3 12 Max Kills in Single Turn 4 | . 4 4 Gunslinging . | . . . Exploded 4 | . 3 4 Melee . | . . . Uniques/NPCs Destroyed . | . . . Combat | -11 -10 -10 -------- Run | Yrd Mat Min Hostile Shots Fired 54 | . 20 34 Missed 15 | . 7 8 Damage Taken 919 | . 354 565 Core 256 | . 42 214 Absorbed by Shields . | . . . Core Remaining (%) 100 | 100 . . Volleys Fired 36 | . 21 15 Largest 2 | . 2 2 Hottest 70 | . 70 70 Shots Fired 58 | . 41 17 Gun 23 | . 21 2 Cannon . | . . . Launcher 35 | . 20 15 Special . | . . . Kinetic . | . . . Thermal . | . . . Explosive 35 | . 20 15 Electromagnetic 23 | . 21 2 Robot Hit Streak 7 | . 3 7 Robot Miss Streak 2 | . 2 1 Penetration Max . | . . . Secondary Targets . | . . . Shots Hit Robots 27 | . 13 14 Core Hits 58 | . 30 28 Critical Kills . | . . . Critical Parts Destroyed . | . . . Critical Strikes . | . . . Melee Attacks . | . . . Impact . | . . . Slashing . | . . . Piercing . | . . . Sneak Attacks . | . . . Combat Hostiles . | . . . Follow-up Attacks . | . . . Damage Inflicted 2466 | . 1462 1004 Guns 120 | . 107 13 Cannons . | . . . Explosions 2346 | . 1355 991 Melee . | . . . Ramming . | . . . Kinetic . | . . . Thermal 39 | . 39 . Explosive 2307 | . 1316 991 Electromagnetic 120 | . 107 13 Impact . | . . . Slashing . | . . . Piercing . | . . . Highest Corruption . | . . . Average Corruption . | . . . Corruption Purged . | . . . Corruption Blocked . | . . . Overload Shots . | . . . Overflow Damage 80 | . 80 . Projectiles . | . . . Explosions 80 | . 80 . Melee . | . . . Knockbacks . | . . . Impact . | . . . Kinetic . | . . . Secondary . | . . . Self-Inflicted Damage 332 | . 249 83 Shots 9 | . 6 3 Rammed . | . . . Targets Rammed . | . . . Kicked . | . . . Crushed . | . . . Highest Temperature 36 | . 36 30 Average Temperature 15 | . 15 13 Received Heat Transfer 68 | . 12 56 Siege Activations . | . . . Robots Corrupted . | . . . Combat Hostiles . | . . . Parts Fried . | . . . Impact Corruptions . | . . . Robots Melted . | . . . Combat Hostiles . | . . . Parts Melted . | . . . Heat Transferred 100 | . 100 . Parts Sabotaged . | . . . Parts Stolen . | . . . Parts Stripped . | . . . Power Chain Reactions . | . . . Alert | -11 -10 -10 ------- Run | Yrd Mat Min Peak Influence 485 | . 485 385 Initial 189 | . . 189 Average 295 | . 311 334 Maximum Alert Level 2 | . 2 1 Low Security (%) 29 | 100 30 . Level 1 49 | . 41 100 Level 2 21 | . 27 . Level 3 . | . . . Level 4 . | . . . Level 5 . | . . . High Security . | . . . Max Security . | . . . Squads Dispatched 3 | . 3 . Investigation 1 | . 1 . Extermination . | . . . Reinforcement 2 | . 2 . Assault . | . . . Garrison . | . . . Intercept . | . . . Searches Triggered . | . . . Construction Impeded . | . . . Haulers Reinforced . | . . . Active Scanning Responses . | . . . Cargo Convoy Interrupts . | . . . Stealth | -11 -10 -10 --------- Run | Yrd Mat Min Distress Signals 1 | . 1 . Communications Jammed . | . . . Distress Signals . | . . . Times Spotted 36 | . 17 19 Peak Tracking Total 10 | . 4 10 Tactical Retreats . | . . . Traps | -11 -10 -10 ------- Run | Yrd Mat Min Traps Triggered 2 | . 2 . Indirectly . | . . . Trap Hack Attempts . | . . . Triggered . | . . . Disarmed . | . . . Reprogrammed . | . . . Reused . | . . . Traps Extracted . | . . . Installed . | . . . Triggered . | . . . Machines | -11 -10 -10 ---------- Run | Yrd Mat Min Machines Disabled 5 | . 5 . Max in Single Turn 2 | . 2 . Machines Repaired . | . . . Machines Dismantled . | . . . Machines Sabotaged . | . . . Overloaded Fab Kills . | . . . Hacking | -11 -10 -10 --------- Run | Yrd Mat Min Machines Accessed . | . . . Terminals . | . . . Fabricators . | . . . Repair Stations . | . . . Recycling Units . | . . . Scanalyzers . | . . . Garrison Access . | . . . Total Hacks . | . . . Successful . | . . . Failed . | . . . Catastrophic . | . . . Database Lockouts . | . . . Manual 1 | . 1 . Terminals . | . . . Fabricators . | . . . Repair Stations . | . . . Recycling Units . | . . . Scanalyzers . | . . . Garrison Access . | . . . Terminal Hacks . | . . . Fabricator Hacks . | . . . Repair Station Hacks . | . . . Recycling Unit Hacks . | . . . Scanalyzer . | . . . Garrison Access Hacks . | . . . Unauthorized Hacks . | . . . Terminals . | . . . Fabricators . | . . . Repair Stations . | . . . Recycling Units . | . . . Scanalyzers . | . . . Garrison Access . | . . . Data Cores Recovered . | . . . Used . | . . . Hacking Detections . | . . . Full Trace Events . | . . . Feedback Events . | . . . Feedback Blocked . | . . . Robot Schematics Acquired . | . . . Robots Built . | . . . Authchips . | . . . Time . | . . . Total Robot Build Rating . | . . . Part Schematics Acquired . | . . . Parts Built . | . . . Authchips . | . . . Time . | . . . Total Part Build Rating . | . . . Parts Repaired . | . . . Time . | . . . Parts Recycled . | . . . Recycled Matter . | . . . Retrieved Matter . | . . . Retrieved Components . | . . . Parts Scanalyzed . | . . . Part Schematics Acquired . | . . . Parts Damaged . | . . . Bothacking | -11 -10 -10 ------------ Run | Yrd Mat Min Used RIF Installer . | . . . Robots Hacked . | . . . Non-combat . | . . . Combat . | . . . Robot Hacks Applied . | . . . Relay Couplers Released . | . . . Fabnet Peak Effective % . | . . . Robots Rewired . | . . . Allies Hacked . | . . . Hacks Repelled . | . . . Allies | -11 -10 -10 -------- Run | Yrd Mat Min Total Allies . | . . . Largest Group . | . . . Highest-Rated Group . | . . . Highest-Rated Ally . | . . . Total Orders . | . . . Ally Attacks . | . . . Total Damage . | . . . Kills . | . . . Allies Corrupted . | . . . Allies Melted . | . . . Intel | -11 -10 -10 ------- Run | Yrd Mat Min Robot Analysis Total . | . . . Derelict Logs Recovered . | . . . Drone Launches . | . . . Drone Recoveries . | . . . Exploration | -11 -10 -10 ------------- Run | Yrd Mat Min Turns Passed 831 | 53 635 143 Spaces Moved 452 | 42 342 68 Core 50 | 42 4 4 Treads 402 | . 338 64 Legs . | . . . Wheels . | . . . Hover . | . . . Flight . | . . . Fastest Speed 50 | 50 100 100 Average Speed 153 | 97 159 157 Slowest Speed 160 | 100 160 160 Overloaded Moves . | . . . Propulsion Burnouts . | . . . Robots Hopped . | . . . Cave-ins Triggered . | . . . Exploration Rate (%) 35 | 3 75 29 Regions Visited 2 Branch Regions 1 Pre-discovered Areas . | . . . Known Exits Taken . | . . . Unknown Exits Taken 2 | 1 1 . Scrap Searched . | . . . Spaces Dug . | . . . Terrain Destroyed 342 | . 210 132 Melee . | . . . Projectile . | . . . AOE 342 | . 210 132 Terrain Rammed . | . . . Walls Destroyed . | . . . Machines Disabled . | . . . Actions | -11 -10 -10 --------- Run | Yrd Mat Min Total 531 | 54 389 88 Wait 5 | 1 4 . Move 450 | 41 341 68 Hop . | . . . Pick Up 17 | 10 6 1 Fast Attach 8 | . 8 . Attach 7 | 2 3 2 Detach 1 | . . 1 Swap 1 | . 1 . Drop 6 | . 5 1 Fire 36 | . 21 15 Melee . | . . . Ram . | . . . Kick . | . . . Crush . | . . . Escape Stasis . | . . . Rewire . | . . . Trap . | . . . Miscellaneous . | . . . Route ------- -11/Scrapyard -10/Materials (discovered 4 exits: [*Mat x2] / [*Min x2]) -10/Mines History --------- Turn | Location | Event 36 | -11/Scrapyard | Discovered new exit (range 16) 54 | -11/Scrapyard | Entered Materials 197 | -10/Materials | Discovered new exit (range 16) 326 | -10/Materials | Build established: Mutant 441 | -10/Materials | Discovered new exit (range 13) 565 | -10/Materials | Discovered new exit (range 6) 625 | -10/Materials | Discovered new exit (range 15) 689 | -10/Materials | Entered Mines 745 | -10/Mines | Found a damaged Exp. Sensor Array with a note attached 750 | -10/Mines | Found Prototype Device 777 | -10/Mines | Assembled infested the area 824 | -10/Mines | Core integrity fell below 50% 828 | -10/Mines | Core integrity fell below 20% 832 | -10/Mines | Destroyed by D-53 Grenadier with Mini Grenade Launcher Last Messages --------------- 00815_ Ion Engine destroyed. 00815_ as-66296 destroyed. 00817_ as-08263 destroyed. 00817_ Imp. Treads destroyed. 00819_ as-02659 destroyed. 00819_ as-91469 destroyed. 00819_ as-43443 destroyed. 00819_ as-98095 destroyed. 00821_ The unstable cave ceiling collapses. 00821_ as-30693 destroyed. 00823_ as-89958 destroyed. 00823_ as-86248 destroyed. 00823_ as-58323 destroyed. 00823_ C-30 ARC bursts open, deploying its payload. 00823_ D-53 Grenadier unfolds itself. 00823_ Imp. Treads destroyed. 00825_ The unstable cave ceiling collapses. 00826_ Mni. Grenade Launcher destroyed. 00829_ Grenade Launcher destroyed. 00831_ The unstable cave ceiling collapses. Map ----- +----------------------------------------------------+ | ?????????????????????????????## | | ??????????????????????????????#### | | ?????????????????????????????????## # # | | ????????????????????????####??????## ## # | | ???????????????????????? ???????# ## # | | ???????????????????????? ????#### ### ## | | ???????????????????????? ????# ## #? | | ???????????????????????? ????# ##### # | | ????????????????????????# #????# #???# # | | ????????????????????????# #????# #???## ## | | ????????????????????????# #????# #????### ##? | | ????????????????????????# #????# #??????# #?? | | ????????????????????????# ###### #??????# ?? | | ????????????????????????# ## r #??????###?? | | ?????????#??????????????# ## #####??????????? | | ????????? #####????????# ## #??????????????? | | ???????? ??????? #??????????????? | | ???????? ??##### ###??????????????? | | ???????? ## % #???????????????? | | ??????? # ##???????????????? | | ??????? d #???????????????? | | ?????????? d #???????????????? | | ????????????????# #?????????????????? | | ????????????# #### ##????????????????? | | ????????????# #????????????????? | | ????????????##### @ #???????????????? | | ????????????????## #?????????????? | | ???????????????# #?????????????? | | ??????????????# a % ??????????? | | ??????????????## %% ?????????? | | ???????????????## % ####??????????? | | ????????????????# ## # #?????????????? | | ????????????????# ?## % #?????????????? | | ???????????????? ??# a # ## ????????????? | | ???????????????##???# %* ####? ???????????? | | ????????????????????? ###??????????????????? | | ?????????????????????# ????????????????????? | | ?????????????????????? %????????????????????? | | ??????????????????????###????????????????????? | | ?????????????????????????????????????????????? | | ?????????????????????????????????????????????? | | ?????????????????????????????????????????????? | | ?????????????????????????????????????????????? | | ?????????????????????????????????????????????? | | ?????????????????????????????????????????????? | | ?????????????????????????????????????????????? | | ?????????????????????????????????????????????? | | ?????????????????????????????????????????????? | | ?????????????????????????????????????????????? | | ?????????????????????????????????????????????? | +----------------------------------------------------+ Best States ------------- Heat Dissipation 25 Energy Generation 10 Energy Capacity 250 Matter Stores 300 Matter Capacity 300 Sight Range 16 Terrain Scan Density 10 Armor Coverage 150 Evasion (%) 40 Targeting Accuracy 5 Recoil Reduction 2 Item Schematics ----------------- None Robot Schematics ------------------ None Fabricated ------------ Nothing Alien Tech Used ----------------- None Achievements -------------- None Challenges ------------ None Game ------ Seed MappingInertialRipper Manual? 0 Play Time 00:15:15 Cumulative 9.6 hours Start 2024.07.15 @ 17:56:32 End 2024.07.15 @ 20:32:17 Sessions 2 Manual Loads 0 Difficulty Rogue Special Mode None Game No. 12 Rogue 12 Adventurer 0 Explorer 0 Win Type - Total 0 Types 0/0/0/0/0/0/0/0/0 Lore% 14 Gallery% 9 Achievement% 10 Wizard Run 0 Options --------- Layout 0 ASCII 0 Keyboard 0 Movement Mouse Keybinds 0 Fullscreen 2 Font 18/Smallcaps Map View 38x25 Zoom Use 95% Tactical HUD 1 Map Filters NONE Filters NONE Steam 1 RUN: e48054f5-e787-4de8-9d5a-3c5d9633aa3d